bitfinex-derivatives/quotes_SOLF0:USTF0_20241231
["timestamp","ask_amount","ask_price","bid_price","bid_amount"]
[1735642321106,8.11991562,194.78,194.77,2.5711]
[1735642322501,8.11991562,194.78,194.68,1.4515]
[1735642322697,8.11991562,194.74,194.69,3.94083917]
[1735642322897,8.11991562,194.74,194.7,3.94083917]
[1735642323099,8.11991562,194.74,194.69,8.11991562]
[1735642323297,8.11991562,194.74,194.7,3.94074694]
[1735642323598,8.11991562,194.74,194.73,2.5716]
[1735642326601,8.11991562,194.76,194.75,2.5712]
[1735642327705,8.11991562,194.76,194.74,2.5714]
[1735642327897,8.11991562,194.75,194.74,2.5714]
[1735642329003,8.11991562,194.75,194.68,1.4515]
[1735642329200,8.11991562,194.72,194.71,2.5717]
[1735642332602,8.11991562,194.72,194.67,2.5723]
[1735642332905,2.92,194.75,194.67,2.5723]
[1735642332906,8.11991562,194.68,194.67,2.5723]
[1735642333407,2.92,194.7,194.69,2.5721]
[1735642333607,11.03991562,194.7,194.69,2.5721]
[1735642333801,11.03991562,194.7,194.61,54.41602275]
[1735642333999,8.11991562,194.68,194.62,3.94530044]
[1735642334208,2.92,194.7,194.61,1.98115458]
[1735642334209,8.11991562,194.66,194.61,1.98115458]
[1735642334509,8.11991562,194.66,194.62,3.94663139]
[1735642334707,8.11991562,194.66,194.61,1.98115458]
[1735642335205,8.11991562,194.64,194.62,2.573]
[1735642336104,8.11991562,194.64,194.61,1.98115458]
[1735642336304,8.11991562,194.62,194.61,1.98115458]
[1735642336809,8.11991562,194.62,194.61,4.55435458]
[1735642337210,8.11991562,194.62,194.61,1.98115458]
[1735642337510,8.11991562,194.62,194.53,8.11991562]
[1735642337706,8.11991562,194.6,194.54,3.94432308]
[1735642337907,8.11991562,194.6,194.55,3.94432308]
[1735642338110,8.11991562,194.6,194.53,8.11991562]
[1735642338411,8.11991562,194.6,194.59,2.5733]
[1735642339012,11.07591562,194.64,194.61,2.5732]
[1735642339312,11.07591562,194.64,194.57,8.11991562]
[1735642339512,8.11991562,194.64,194.57,8.11991562]
[1735642339711,8.11991562,194.64,194.63,2.5729]
[1735642341307,8.11991562,194.64,194.62,2.5729]
[1735642341507,8.11991562,194.64,194.57,8.11991562]
[1735642342209,8.11991562,194.62,194.51,33.10656517]
[1735642342518,8.11991562,194.62,194.54,8.11991562]
[1735642342807,8.11991562,194.62,194.55,3.94480911]
[1735642343009,8.11991562,194.58,194.51,9.0683977]
[1735642343209,8.11991562,194.58,194.52,3.94458026]
[1735642343410,8.11991562,194.58,194.51,17.18831332]
[1735642344116,8.11991562,194.58,194.55,2.5738]
[1735642344621,8.11991562,194.58,194.57,2.5737]
[1735642344821,11.03991562,194.6,194.53,8.11991562]
[1735642345120,8.11991562,194.6,194.59,2.5734]
[1735642346324,8.11991562,194.6,194.58,2.5736]
[1735642346524,8.11991562,194.6,194.53,8.11991562]
[1735642346925,8.11991562,194.58,194.56,2.5738]
[1735642347820,8.11991562,194.58,194.57,2.5737]
[1735642348426,11.03991562,194.6,194.57,2.5737]
[1735642349417,3.0271,194.64,194.55,8.11991562]
[1735642349626,5.9471,194.64,194.57,8.11991562]
[1735642349922,14.06701562,194.64,194.57,8.11991562]
[1735642350124,11.14701562,194.64,194.57,8.11991562]
[1735642350317,11.14701562,194.64,194.63,2.5729]
[1735642350318,8.11991562,194.64,194.63,2.5729]
[1735642350515,8.11991562,194.66,194.59,8.11991562]
[1735642350721,11.03991562,194.66,194.59,8.11991562]
[1735642350920,11.03991562,194.66,194.64,2.5727]
[1735642351126,2.92,194.66,194.59,8.11991562]
[1735642351320,8.11991562,194.69,194.61,8.11991562]
[1735642352223,8.11991562,194.69,194.63,8.11991562]
[1735642354433,8.11991562,194.69,194.67,2.5723]
[1735642355332,8.11991562,194.69,194.68,2.5722]
[1735642360445,8.11991562,194.69,194.65,2.5725]
[1735642360734,8.11991562,194.67,194.61,8.11991562]
[1735642361230,8.11991562,194.67,194.65,2.5726]
[1735642362334,8.11991562,194.69,194.65,2.5726]
[1735642362930,8.11991562,194.67,194.65,2.5726]
[1735642366037,8.11991562,194.69,194.65,2.5726]
[1735642366633,8.11991562,194.69,194.66,2.5725]
[1735642368238,8.11991562,194.67,194.66,2.5725]
[1735642370838,2.9896,194.73,194.7,2.5719]
[1735642371032,8.11991562,194.71,194.7,2.5719]
[1735642372642,8.11991562,194.71,194.68,2.5722]
[1735642372841,8.11991562,194.69,194.68,2.5722]
[1735642377243,8.11991562,194.69,194.57,33.30485662]
[1735642377438,8.11991562,194.66,194.58,6.86232691]
[1735642377644,8.11991562,194.66,194.59,12.06224253]
[1735642377842,8.11991562,194.66,194.64,2.5727]
[1735642378642,8.11991562,194.66,194.65,2.5726]
[1735642379646,11.03991562,194.68,194.67,2.5724]
[1735642380246,8.11991562,194.7,194.69,2.5721]
[1735642383842,8.11991562,194.72,194.65,8.11991562]
[1735642385042,8.11991562,194.74,194.67,8.11991562]
[1735642386447,8.11991562,194.74,194.72,2.5716]
[1735642386942,8.11991562,194.74,194.67,8.11991562]
[1735642387441,8.11991562,194.72,194.66,2.92]
[1735642388251,8.11991562,194.7,194.64,16.3567732]
[1735642388443,8.11991562,194.7,194.64,9.31738405]
[1735642388845,8.11991562,194.7,194.69,2.5721]
[1735642389943,8.11991562,194.72,194.65,8.11991562]
[1735642390149,8.11991562,194.72,194.7,2.572]
[1735642392539,8.11991562,194.72,194.71,2.5719]
[1735642395150,8.11991562,194.72,194.63,7.03938915]
[1735642395344,8.11991562,194.69,194.64,3.94523269]
[1735642395541,8.11991562,194.69,194.67,2.5723]
[1735642395750,8.11991562,194.69,194.63,7.03938915]
[1735642395946,8.11991562,194.69,194.65,2.5726]
[1735642395947,8.11991562,194.67,194.65,2.5726]
[1735642397153,8.11991562,194.67,194.66,2.5725]
[1735642397847,11.03991562,194.69,194.67,2.5723]
[1735642398551,8.11991562,194.71,194.64,8.11991562]
[1735642398757,8.11991562,194.71,194.65,3.95615242]
[1735642398956,8.11991562,194.69,194.66,3.95615242]
[1735642399158,8.11991562,194.69,194.64,8.11991562]
[1735642399458,8.11991562,194.69,194.65,3.95671868]
[1735642399657,8.11991562,194.69,194.66,3.95671868]
[1735642399857,8.11991562,194.69,194.68,2.5722]
[1735642403353,8.11991562,194.71,194.65,8.11991562]
[1735642403558,8.11991562,194.71,194.7,2.572]
[1735642403754,4.522,194.74,194.65,8.11991562]
[1735642403955,8.11991562,194.74,194.72,2.5717]
[1735642404656,2.92,194.77,194.73,2.5715]
[1735642404960,8.11991562,194.75,194.67,8.11991562]
[1735642405254,8.11991562,194.75,194.68,3.95529214]
[1735642405458,8.11991562,194.75,194.69,3.95529214]
[1735642405659,8.11991562,194.75,194.7,3.95529214]
[1735642405860,8.11991562,194.75,194.67,8.11991562]
[1735642406063,8.11991562,194.75,194.72,2.5716]
[1735642406853,8.11991562,194.73,194.7,2.5719]
[1735642407364,8.11991562,194.71,194.65,28.15755662]
[1735642407560,8.11991562,194.71,194.66,3.95747472]
[1735642407862,8.11991562,194.71,194.64,45.32238845]
[1735642408164,8.11991562,194.71,194.65,3.95773975]
[1735642408464,8.11991562,194.71,194.68,2.5722]
[1735642410361,8.11991562,194.69,194.68,2.5722]
[1735642410561,8.11991562,194.69,194.67,2.5724]
[1735642410762,8.11991562,194.69,194.62,7.03938915]
[1735642410964,8.11991562,194.67,194.63,3.95734377]
[1735642411164,8.11991562,194.67,194.64,3.95734377]
[1735642411368,8.11991562,194.67,194.61,8.11991562]
[1735642411562,8.11991562,194.67,194.66,2.5725]
[1735642415271,8.11991562,194.7,194.68,2.5722]
[1735642415874,8.11991562,194.7,194.67,2.5723]
[1735642416169,5.7172,194.72,194.67,2.5723]
[1735642416170,8.11991562,194.68,194.67,2.5723]
[1735642420275,3.1454,194.72,194.6,6.1177]
[1735642420276,8.11991562,194.7,194.68,2.5722]
[1735642424980,8.11991562,194.7,194.69,2.5721]
[1735642429184,14.18531562,194.72,194.65,8.11991562]
[1735642429382,9.71991562,194.72,194.71,2.5719]
[1735642429581,8.11991562,194.72,194.71,2.5719]
[1735642430489,2.92,194.76,194.67,8.11991562]
[1735642430690,2.92,194.76,194.68,3.96215815]
[1735642430882,8.11991562,194.75,194.69,3.96215815]
[1735642431081,8.11991562,194.75,194.74,2.5715]
[1735642432992,8.11991562,194.75,194.66,7.03938915]
[1735642433292,8.11991562,194.7,194.67,3.9608428]
[1735642433488,8.11991562,194.7,194.66,7.03938915]
[1735642433689,8.11991562,194.7,194.67,3.96176204]
[1735642433993,8.11991562,194.7,194.68,2.5721]
[1735642435187,8.11991562,194.7,194.64,8.11991562]
[1735642435385,8.11991562,194.7,194.69,2.5721]
[1735642435786,2.92,194.72,194.64,8.11991562]
[1735642435990,8.11991562,194.74,194.66,8.11991562]
[1735642436185,2.92,194.75,194.67,3.96134949]
[1735642436489,2.92,194.75,194.68,3.96134949]
[1735642436794,2.92,194.75,194.69,3.96134949]
[1735642437088,2.92,194.75,194.7,3.96134949]
[1735642437296,2.92,194.75,194.73,2.5715]
[1735642437792,2.92,194.75,194.7,2.572]
[1735642437988,2.92,194.75,194.68,8.11991562]
[1735642438194,2.92,194.75,194.69,3.95851183]
[1735642438391,2.92,194.75,194.73,2.5715]
[1735642439393,8.11991562,194.76,194.73,2.5715]
[1735642440196,4.3752,194.77,194.73,2.5715]
[1735642440400,8.11991562,194.74,194.73,2.5715]
[1735642441494,8.11991562,194.75,194.73,2.5715]
[1735642444499,2.5717,194.73,194.68,2.5721]
[1735642444699,8.11991562,194.7,194.65,7.03938915]
[1735642444902,8.11991562,194.7,194.66,3.95560924]
[1735642445099,8.11991562,194.7,194.69,2.5721]
[1735642448908,8.11991562,194.72,194.71,2.5718]
[1735642450004,2.92,194.77,194.66,8.11991562]
[1735642450207,2.92,194.77,194.75,2.5713]
[1735642450798,5.4911,194.77,194.75,2.5713]
[1735642451400,5.4911,194.77,194.74,2.5714]
[1735642451703,8.11991562,194.75,194.74,2.5714]
[1735642455001,8.11991562,194.75,194.67,8.11991562]
[1735642455200,2.92,194.78,194.68,3.9442345]
[1735642455201,8.11991562,194.73,194.68,3.9442345]
[1735642455404,8.11991562,194.73,194.67,8.11991562]
[1735642455705,8.11991562,194.73,194.72,2.5716]
[1735642457506,8.11991562,194.73,194.71,2.5718]
[1735642457709,8.11991562,194.73,194.65,11.03991562]
[1735642457909,8.11991562,194.73,194.66,3.94539449]
[1735642458104,8.11991562,194.73,194.67,3.94539449]
[1735642458407,8.11991562,194.73,194.65,11.03991562]
[1735642458596,8.11991562,194.73,194.7,2.5719]
[1735642459607,8.11991562,194.71,194.67,2.5723]
[1735642460108,8.11991562,194.69,194.65,2.5725]
[1735642461002,8.11991562,194.69,194.66,2.5725]
[1735642468512,10.69211562,194.69,194.64,2.5727]
[1735642468712,8.11991562,194.67,194.6,8.11991562]
[1735642468912,8.11991562,194.67,194.61,3.94513109]
[1735642469114,8.11991562,194.67,194.65,2.5726]
[1735642472919,8.11991562,194.69,194.62,8.11991562]
[1735642473307,3.0395,194.71,194.66,8.11991562]
[1735642473613,11.03991562,194.74,194.66,8.11991562]
[1735642473811,3.0871,194.8,194.72,8.11991562]
[1735642474121,8.11991562,194.81,194.74,8.11991562]
[1735642474322,57.16178465,194.82,194.76,8.11991562]
[1735642474519,8.11991562,194.81,194.76,8.11991562]
[1735642475019,8.11991562,194.81,194.74,8.11991562]
[1735642475818,8.11991562,194.81,194.76,2.5711]
[1735642479324,10.69051562,194.81,194.76,2.5711]
[1735642480027,8.11991562,194.81,194.76,2.5711]
[1735642480624,8.11991562,194.81,194.75,2.5713]
[1735642480625,8.11991562,194.79,194.75,2.5713]
[1735642482426,57.16178465,194.95,194.73,8.11991562]
[1735642482729,8.11991562,194.82,194.75,8.11991562]
[1735642482932,8.11991562,194.8,194.72,2.92]
[1735642483228,8.11991562,194.8,194.74,8.11991562]
[1735642483928,8.11991562,194.8,194.76,2.5711]
[1735642484131,8.11991562,194.8,194.74,8.11991562]
[1735642485431,8.11991562,194.8,194.75,2.5713]
[1735642486833,8.11991562,194.8,194.76,2.5712]
[1735642487939,8.11991562,194.8,194.74,8.11991562]
[1735642489431,8.11991562,194.8,194.76,2.5711]
[1735642489736,8.11991562,194.8,194.7,2.9]
[1735642490037,8.11991562,194.8,194.72,8.11991562]
[1735642490538,8.11991562,194.8,194.76,2.5712]
[1735642491934,8.11991562,194.78,194.76,2.5712]
[1735642492235,11.01991562,194.78,194.7,8.11991562]
[1735642493035,11.01991562,194.78,194.73,2.5715]
[1735642493340,11.01991562,194.78,194.7,8.11991562]
[1735642494439,11.01991562,194.78,194.74,2.5714]
[1735642494738,11.01991562,194.78,194.72,8.11991562]
[1735642494939,2.9,194.78,194.72,8.11991562]
[1735642496436,2.9,194.78,194.76,2.5711]
[1735642497437,11.01991562,194.8,194.77,2.5711]
[1735642502238,11.01991562,194.8,194.72,8.11991562]
[1735642503642,8.11991562,194.8,194.78,2.5708]
[1735642503835,4.5095,194.81,194.74,8.11991562]
[1735642505132,4.5095,194.81,194.79,2.5707]
[1735642505333,14.15561562,194.82,194.79,2.5707]
[1735642507946,14.15561562,194.82,194.75,8.11991562]
[1735642508842,14.15561562,194.82,194.79,2.5707]
[1735642509743,11.25561562,194.82,194.72,2.9]
[1735642509942,14.15561562,194.82,194.74,8.11991562]
[1735642511650,14.15561562,194.82,194.79,2.5707]
[1735642516352,12.58141562,194.82,194.79,2.5707]
[1735642516859,11.01991562,194.82,194.74,8.11991562]
[1735642517159,2.9,194.85,194.78,8.11991562]
[1735642517356,11.01991562,194.85,194.78,8.11991562]
[1735642517661,8.11991562,194.85,194.78,8.11991562]
[1735642518360,8.11991562,194.85,194.79,3.93858998]
[1735642518557,8.11991562,194.85,194.78,8.11991562]
[1735642518760,8.11991562,194.85,194.79,3.93771674]
[1735642518960,8.11991562,194.85,194.78,8.11991562]
[1735642519161,8.11991562,194.85,194.79,3.93769909]
[1735642519461,8.11991562,194.85,194.82,2.5703]
[1735642519661,8.11991562,194.85,194.78,8.11991562]
[1735642519863,8.11991562,194.85,194.79,3.93720675]
[1735642520061,8.11991562,194.85,194.78,8.11991562]
[1735642520263,8.11991562,194.85,194.79,3.93719087]
[1735642520463,8.11991562,194.85,194.78,8.11991562]
[1735642520664,8.11991562,194.85,194.79,3.93658279]
[1735642520853,8.11991562,194.85,194.78,8.11991562]
[1735642521057,8.11991562,194.85,194.79,3.93655335]
[1735642521260,8.11991562,194.85,194.83,2.5702]
[1735642521964,4.0934,194.89,194.8,8.11991562]
[1735642522155,8.11991562,194.86,194.8,8.11991562]
[1735642522355,8.11991562,194.86,194.78,8.11991562]
[1735642522555,8.11991562,194.86,194.79,3.93614921]
[1735642522761,8.11991562,194.86,194.78,8.11991562]
[1735642523056,8.11991562,194.86,194.79,3.93556787]
[1735642523363,8.11991562,194.86,194.78,8.11991562]
[1735642523562,8.11991562,194.86,194.83,2.5702]
[1735642525970,8.11991562,194.84,194.81,2.5705]
[1735642526268,8.11991562,194.82,194.77,2.9]
[1735642526763,8.11991562,194.82,194.8,2.5705]
[1735642526967,8.11991562,194.82,194.77,2.9]
[1735642527268,8.11991562,194.8,194.74,8.11991562]
[1735642527461,8.11991562,194.8,194.75,3.93685521]
[1735642527664,8.11991562,194.8,194.78,2.5708]
[1735642528166,8.11991562,194.8,194.74,8.11991562]
[1735642528360,8.11991562,194.8,194.78,2.5709]
[1735642529468,8.11991562,194.8,194.71,7.03938915]
[1735642529672,8.11991562,194.77,194.74,2.5714]
[1735642530779,65.10762038,194.91,194.76,8.11991562]
[1735642531065,2.9,194.87,194.77,3.9360679]
[1735642531274,8.11991562,194.83,194.76,8.11991562]
[1735642531466,8.11991562,194.83,194.77,3.93601787]
[1735642531672,8.11991562,194.83,194.78,3.93532096]
[1735642531971,8.11991562,194.81,194.75,8.11991562]
[1735642532273,8.11991562,194.79,194.74,2.9]
[1735642532473,8.11991562,194.79,194.72,15.15930477]
[1735642532673,8.11991562,194.79,194.73,3.93737834]
[1735642532975,8.11991562,194.79,194.74,2.5713]
[1735642533375,8.11991562,194.79,194.72,8.11991562]
[1735642533568,8.11991562,194.79,194.75,2.5713]
[1735642534373,8.11991562,194.79,194.72,8.11991562]
[1735642534568,8.11991562,194.81,194.74,8.11991562]
[1735642534769,8.11991562,194.81,194.75,3.93697436]
[1735642534968,8.11991562,194.81,194.76,3.93697436]
[1735642535171,8.11991562,194.81,194.74,8.11991562]
[1735642535372,8.11991562,194.81,194.75,3.9344748]
[1735642535672,8.11991562,194.81,194.76,3.9344748]
[1735642535872,8.11991562,194.81,194.77,2.571]
[1735642536470,8.11991562,194.79,194.72,8.11991562]
[1735642536664,8.11991562,194.79,194.73,3.93249498]
[1735642536870,8.11991562,194.77,194.7,37.84897224]
[1735642537074,8.11991562,194.77,194.74,2.5715]
[1735642538175,8.11991562,194.77,194.7,9.69141562]
[1735642538475,8.11991562,194.77,194.74,2.5714]
[1735642539072,8.11991562,194.77,194.75,2.5713]
[1735642539275,8.11991562,194.77,194.7,9.69141562]
[1735642539577,8.11991562,194.77,194.75,2.5712]
[1735642543172,8.11991562,194.77,194.76,2.5712]
[1735642544381,8.11991562,194.77,194.75,2.5712]
[1735642544973,8.11991562,194.77,194.71,8.11991562]
[1735642545176,8.11991562,194.77,194.76,2.5712]
[1735642546575,8.11991562,194.79,194.76,2.5712]
[1735642549073,8.11991562,194.79,194.77,2.571]
[1735642551283,8.11991562,194.79,194.71,8.11991562]
[1735642551485,8.11991562,194.79,194.78,2.5709]
[1735642554186,8.11991562,194.79,194.73,8.11991562]
[1735642554187,8.11991562,194.79,194.69,9.88876868]
[1735642554379,8.11991562,194.79,194.71,8.11991562]
[1735642554683,8.11991562,194.79,194.72,3.93423269]
[1735642554883,8.11991562,194.79,194.73,3.93423269]
[1735642555187,8.11991562,194.79,194.71,8.11991562]
[1735642555381,8.11991562,194.79,194.72,3.93476158]
[1735642555687,8.11991562,194.79,194.73,3.93476158]
[1735642555892,8.11991562,194.79,194.76,2.5712]
[1735642557186,8.11991562,194.77,194.75,2.5713]
[1735642557688,8.11991562,194.77,194.71,8.11991562]
[1735642557884,8.11991562,194.77,194.72,3.93566993]
[1735642558086,8.11991562,194.77,194.73,3.93566993]
[1735642558388,8.11991562,194.77,194.76,2.5712]
[1735642560889,8.11991562,194.77,194.71,8.11991562]
[1735642561091,8.11991562,194.77,194.69,1.84456868]
[1735642561286,8.11991562,194.77,194.7,8.11991562]
[1735642561487,8.11991562,194.77,194.71,3.93592081]
[1735642561682,8.11991562,194.77,194.7,8.11991562]
[1735642561989,8.11991562,194.77,194.71,3.93561532]
[1735642562190,8.11991562,194.77,194.7,8.11991562]
[1735642562390,8.11991562,194.77,194.71,3.93575408]
[1735642562687,8.11991562,194.77,194.7,8.11991562]
[1735642562889,8.11991562,194.77,194.71,3.93616082]
[1735642563087,8.11991562,194.77,194.7,8.11991562]
[1735642563285,8.11991562,194.77,194.71,3.93620461]
[1735642563491,8.11991562,194.77,194.75,2.5713]
[1735642563791,8.11991562,194.77,194.7,8.11991562]
[1735642564291,8.11991562,194.77,194.74,2.5714]
[1735642565793,8.11991562,194.77,194.7,8.11991562]
[1735642566092,8.11991562,194.77,194.75,2.5713]
[1735642567092,2.9,194.79,194.76,2.5712]
[1735642567292,2.9,194.79,194.72,8.11991562]
[1735642567494,8.11991562,194.78,194.73,3.93760879]
[1735642567685,8.11991562,194.78,194.76,2.5711]
[1735642568493,8.11991562,194.78,194.71,8.11991562]
[1735642568696,8.11991562,194.78,194.77,2.5711]
[1735642569994,2.9,194.79,194.77,2.5711]
[1735642570194,8.11991562,194.78,194.77,2.5711]
[1735642571595,8.11991562,194.78,194.76,2.5712]
[1735642571898,8.11991562,194.77,194.69,1.84456868]
[1735642572092,8.11991562,194.72,194.71,2.5719]
[1735642572294,8.11991562,194.72,194.68,7.03938915]
[1735642572497,8.11991562,194.7,194.68,7.03938915]
[1735642572689,2.5721,194.69,194.68,7.03938915]
[1735642573098,2.5721,194.69,194.67,21.11816747]
[1735642573401,11.01991562,194.68,194.67,21.11816747]
[1735642573598,11.01991562,194.68,194.65,2.5725]
[1735642575289,11.01991562,194.68,194.61,8.11991562]
[1735642575489,8.11991562,194.64,194.62,3.93500878]
[1735642575691,2.9,194.63,194.57,30.77228309]
[1735642575997,2.9,194.63,194.6,2.5733]
[1735642576701,8.11991562,194.64,194.62,2.573]
[1735642576902,2.9,194.64,194.62,2.573]
[1735642577297,2.9,194.64,194.63,2.5729]
[1735642577999,2.9,194.65,194.64,2.5728]
[1735642578903,2.9,194.65,194.61,8.11991562]
[1735642580103,2.9,194.67,194.63,8.11991562]
[1735642580604,2.9,194.68,194.63,8.11991562]
[1735642581204,8.11991562,194.7,194.63,8.11991562]
[1735642581505,2.9,194.7,194.65,8.11991562]
[1735642581805,2.9,194.71,194.7,2.5719]
[1735642584803,2.9,194.71,194.69,2.5721]
[1735642585008,2.9,194.71,194.66,8.11991562]
[1735642587110,2.9,194.71,194.69,2.572]
[1735642588113,8.11991562,194.7,194.64,2.5727]
[1735642588415,8.11991562,194.7,194.63,9.68831562]
[1735642589115,8.11991562,194.7,194.65,2.5726]
[1735642589718,5.4719,194.71,194.63,2.5729]
[1735642589719,8.11991562,194.68,194.63,2.5729]
[1735642591111,8.11991562,194.68,194.65,2.5726]
[1735642591915,2.9,194.67,194.66,2.5725]
[1735642593017,8.11991562,194.7,194.63,8.11991562]
[1735642593217,2.9,194.69,194.68,2.5722]
[1735642594616,2.9,194.69,194.65,8.11991562]
[1735642594918,8.11991562,194.68,194.66,2.5724]
[1735642608025,8.11991562,194.68,194.59,41.31336025]
[1735642608225,8.11991562,194.66,194.6,3.93589933]
[1735642608425,8.11991562,194.66,194.63,2.5728]
[1735642609624,8.11991562,194.66,194.59,41.31336025]
[1735642609827,8.11991562,194.66,194.64,2.5727]
[1735642610225,8.11991562,194.66,194.59,41.31336025]
[1735642610426,8.11991562,194.68,194.65,2.5726]
[1735642612328,8.11991562,194.68,194.66,2.5725]
[1735642615528,8.11991562,194.68,194.67,2.5724]
[1735642615931,8.11991562,194.68,194.61,8.11991562]
[1735642616126,2.5724,194.67,194.64,2.5727]
[1735642616321,2.5724,194.67,194.61,8.11991562]
[1735642616631,2.5724,194.67,194.62,3.94513176]
[1735642616929,2.5724,194.67,194.63,3.94513176]
[1735642617127,2.5724,194.67,194.61,8.11991562]
[1735642617327,2.5724,194.67,194.62,3.94554891]
[1735642617528,2.5724,194.67,194.63,3.94554891]
[1735642617729,2.5724,194.67,194.61,8.11991562]
[1735642617931,2.5724,194.67,194.62,3.945362]
[1735642618232,2.5724,194.67,194.63,3.945362]
[1735642618529,2.5724,194.67,194.61,8.11991562]
[1735642618530,2.5724,194.67,194.64,2.5727]
[1735642620531,2.5726,194.65,194.62,2.573]
[1735642620728,11.01991562,194.64,194.57,23.01970001]
[1735642621031,8.11991562,194.59,194.57,21.11816747]
[1735642621232,2.9,194.58,194.57,21.11816747]
[1735642622528,8.11991562,194.59,194.57,21.11816747]
[1735642622832,11.01991562,194.58,194.52,8.11991562]
[1735642623127,2.9,194.57,194.51,3.0768]
[1735642623332,2.9,194.57,194.52,3.90825016]
[1735642623530,2.9,194.57,194.51,3.0768]
[1735642624229,8.11991562,194.56,194.51,3.0768]
[1735642625031,8.11991562,194.56,194.54,2.574]
[1735642625833,8.11991562,194.56,194.55,2.574]
[1735642626734,8.11991562,194.58,194.57,2.5736]
[1735642626934,2.9,194.59,194.52,8.11991562]
[1735642627832,8.11991562,194.6,194.58,2.5736]
[1735642628030,2.9,194.61,194.54,8.11991562]
[1735642628239,2.9,194.61,194.56,8.11991562]
[1735642628431,11.01991562,194.62,194.56,8.11991562]
[1735642628630,11.01991562,194.62,194.59,2.5733]
[1735642629130,2.9,194.62,194.6,2.5733]
[1735642629330,11.01991562,194.62,194.6,2.5733]
[1735642629731,11.01991562,194.62,194.56,8.11991562]
[1735642630335,11.01991562,194.62,194.59,2.5733]
[1735642631737,8.11991562,194.6,194.57,2.5736]
[1735642632936,10.69321562,194.6,194.56,2.5738]
[1735642633132,8.11991562,194.58,194.52,8.11991562]
[1735642633531,2.9,194.57,194.55,2.5739]
[1735642633931,2.9,194.57,194.52,8.11991562]
[1735642634132,2.9,194.57,194.55,2.5739]
[1735642635137,2.9,194.57,194.54,2.5741]
[1735642635337,8.11991562,194.56,194.51,8.11991562]
[1735642635635,8.11991562,194.56,194.49,8.11991562]
[1735642636236,8.11991562,194.54,194.45,34.27588484]
[1735642636537,8.11991562,194.54,194.47,8.11991562]
[1735642636834,10.69401562,194.54,194.49,2.5747]
[1735642637627,8.11991562,194.54,194.49,2.5747]
[1735642637834,8.11991562,194.54,194.5,2.5746]
[1735642639154,2.5743,194.53,194.48,2.5749]
[1735642639351,2.9,194.52,194.48,2.5749]
[1735642639742,2.5746,194.51,194.45,39.25670046]
[1735642639941,11.01991562,194.52,194.45,39.25670046]
[1735642640333,13.59441562,194.52,194.47,2.5749]
[1735642640533,2.9,194.52,194.45,39.25670046]
[1735642640935,11.01991562,194.52,194.45,39.25670046]
[1735642641137,11.01991562,194.52,194.48,2.5748]
[1735642641736,11.01991562,194.52,194.49,2.5747]
[1735642642938,11.01991562,194.52,194.5,2.5746]
[1735642643138,11.01991562,194.52,194.45,31.13678484]
[1735642643335,13.59431562,194.52,194.45,31.13678484]
[1735642643839,11.01991562,194.52,194.49,2.5746]
[1735642644438,11.01991562,194.52,194.45,31.13678484]
[1735642644639,13.59431562,194.52,194.45,31.13678484]
[1735642644855,11.01991562,194.52,194.45,31.13678484]
[1735642645044,8.11991562,194.5,194.45,31.13678484]
[1735642645239,8.11991562,194.5,194.47,2.575]
[1735642645538,8.11991562,194.5,194.45,31.13678484]
[1735642645744,8.11991562,194.5,194.48,2.5748]
[1735642646844,8.11991562,194.5,194.49,2.5748]
[1735642648638,11.01991562,194.5,194.49,2.5748]
[1735642648838,11.01991562,194.5,194.42,8.11991562]
[1735642649034,11.01991562,194.5,194.48,2.5749]
[1735642652042,11.01991562,194.5,194.49,2.5748]
[1735642656447,11.01991562,194.5,194.48,2.5749]
[1735642657548,11.01991562,194.5,194.49,2.5748]
[1735642659062,13.59451562,194.5,194.41,1.5246]
[1735642659255,13.59451562,194.5,194.42,8.11991562]
[1735642659452,8.11991562,194.48,194.42,8.11991562]
[1735642660457,8.11991562,194.48,194.47,2.5749]
[1735642660658,8.11991562,194.48,194.42,8.11991562]
[1735642660853,10.69481562,194.48,194.41,1.5246]
[1735642661259,10.69511562,194.46,194.4,9.8205649]
[1735642661455,2.9,194.45,194.4,1.70064928]
[1735642661661,8.11991562,194.44,194.4,1.70064928]
[1735642661960,8.11991562,194.44,194.41,2.5758]
[1735642662157,8.11991562,194.44,194.4,1.70064928]
[1735642663057,8.11991562,194.44,194.42,2.5756]
[1735642663857,2.9,194.45,194.42,2.5756]
[1735642664053,8.11991562,194.43,194.4,1.70064928]
[1735642664253,8.11991562,194.43,194.41,2.5758]
[1735642666962,8.11991562,194.43,194.42,2.5757]